bitfinex-derivatives/quotes_ETHF0:USTF0_20250908
["timestamp","ask_amount","ask_price","bid_price","bid_amount"]
[1757331555850,1.2592,4304.5,4304.4,3.1821]
[1757331558755,1.2592,4304.5,4304.4,3.6357]
[1757331562659,1.2592,4304.5,4304.4,2.8663]
[1757331562851,1.2592,4304.5,4304.4,2.556]
[1757331563253,1.2592,4304.5,4304.4,2.8663]
[1757331563755,1.2592,4304.5,4304.4,3.6357]
[1757331563960,0.4535,4304.5,4304.4,3.6357]
[1757331564559,0.7629,4304.5,4304.4,3.6357]
[1757331565654,0.9399,4304.5,4304.4,3.6357]
[1757331565860,0.9399,4304.5,4304.4,28.6357]
[1757331567061,0.7629,4304.5,4304.4,28.6357]
[1757331568158,0.4864,4305.0,4304.9,0.6261]
[1757331568355,1.09241074,4305.0,4304.9,0.6261]
[1757331568555,1.97360631,4305.0,4304.9,0.6261]
[1757331568750,0.4535,4305.0,4304.9,1.0797]
[1757331568954,3.3848,4305.5,4305.0,0.4536]
[1757331569155,1.79666514,4305.4,4305.3,0.6261]
[1757331569553,1.79666514,4305.4,4305.3,1.0797]
[1757331570053,0.7629,4305.4,4305.3,1.0797]
[1757331571454,1.0822,4305.4,4305.3,1.0797]
[1757331572057,1.0822,4305.4,4305.3,0.6261]
[1757331574362,1.0822,4305.4,4305.3,0.3103]
[1757331574561,1.2592,4305.0,4304.9,0.6261]
[1757331574756,0.4535,4304.9,4304.4,27.9941]
[1757331574957,0.7629,4304.5,4304.4,27.9941]
[1757331575958,0.177,4305.0,4304.9,0.6075]
[1757331576167,0.949,4305.0,4304.9,1.0445]
[1757331576369,1.2595,4305.0,4304.9,0.6075]
[1757331577169,0.4662,4304.9,4304.4,27.993]
[1757331577368,0.9431,4304.5,4304.4,27.993]
[1757331579370,0.772,4304.5,4304.4,27.993]
[1757331579959,0.4662,4304.5,4304.4,27.993]
[1757331580868,3.2078,4305.4,4304.4,27.993]
[1757331580869,3.2078,4305.4,4305.0,0.437]
[1757331581067,3.5136,4305.4,4305.3,1.0445]
[1757331581264,3.66619152,4305.4,4305.3,1.0445]
[1757331581462,4.13239152,4305.4,4305.3,1.0445]
[1757331581967,4.44289152,4305.4,4305.3,1.0445]
[1757331582357,4.13239152,4305.4,4305.3,1.0445]
[1757331582764,0.92459152,4305.4,4305.3,1.0445]
[1757331586771,3.2078,4306.4,4305.9,0.6075]
[1757331586963,1.48512297,4306.3,4306.2,0.6075]
[1757331587167,1.48512297,4306.3,4306.2,1.0445]
[1757331588164,0.92290981,4306.3,4306.2,1.0445]
[1757331588565,0.772,4306.3,4306.2,1.0445]
[1757331592269,0.4662,4306.3,4306.2,1.0445]
[1757331592469,0.772,4306.3,4306.2,1.0445]
[1757331592867,1.0825,4306.3,4306.2,0.6075]
[1757331593871,1.0825,4306.3,4306.2,0.7287]
[1757331594077,1.2536,4305.5,4305.4,0.1449]
[1757331594373,1.2536,4304.5,4303.9,0.4407]
[1757331594875,6.1972104,4304.5,4304.4,15.18322383]
[1757331595076,6.1972104,4304.5,4304.4,16.94882383]
[1757331596174,1.7937904,4304.5,4304.4,16.94882383]
[1757331596375,1.7937904,4304.5,4304.4,17.38952383]
[1757331597376,1.7937904,4304.5,4304.4,16.94882383]
[1757331597882,1.7937904,4304.5,4304.4,15.18322383]
[1757331598471,1.7937904,4304.5,4304.4,15.62392383]
[1757331598667,1.3275904,4304.5,4304.4,15.91562383]
[1757331598872,5.3275904,4304.5,4304.4,15.62392383]
[1757331599276,5.3275904,4304.5,4304.4,15.18322383]
[1757331600181,5.17706843,4304.5,4304.4,15.62392383]
[1757331601979,4.6163,4304.5,4304.4,15.91562383]
[1757331602779,0.6163,4304.5,4304.4,16.23142383]
[1757331604579,0.3058,4304.5,4304.4,16.23142383]
[1757331604775,3.2078,4304.8,4304.4,16.23142383]
[1757331605082,3.2078,4304.8,4304.7,1.0482]
[1757331606883,3.2078,4305.3,4304.7,1.0482]
[1757331607075,0.1279,4305.1,4305.0,0.7903]
[1757331607281,3.2078,4305.3,4305.1,0.4948]
[1757331607581,3.2078,4305.3,4305.2,1.1]
[1757331607786,3.3357,4305.3,4305.2,1.1]
[1757331609187,3.4636,4305.3,4305.2,1.1]
[1757331610482,3.3357,4305.3,4305.2,1.1]
[1757331610784,0.1279,4305.6,4305.5,0.7903]
[1757331610985,0.2558,4305.6,4305.5,0.7903]
[1757331611187,0.2558,4305.6,4305.5,0.982]
[1757331611486,0.89432629,4305.6,4305.5,0.6799]
[1757331611881,0.81442629,4305.6,4305.5,0.6799]
[1757331612075,0.81442629,4305.6,4305.5,0.982]
[1757331612474,0.81442629,4305.6,4305.5,1.2851]
[1757331612886,0.55862629,4305.6,4305.5,1.2851]
[1757331613181,3.2078,4305.8,4305.6,0.4948]
[1757331613382,3.2078,4305.8,4305.5,0.1851]
[1757331613383,3.2078,4305.8,4305.7,0.6052]
[1757331613587,3.3357,4305.8,4305.7,1.1]
[1757331614281,3.4636,4305.8,4305.7,1.1]
[1757331617485,3.2078,4305.8,4305.7,1.1]
[1757331617886,3.3357,4305.8,4305.7,1.1]
[1757331618080,3.2078,4305.8,4305.7,1.1]
[1757331618282,3.3357,4306.4,4306.3,1.1]
[1757331619087,3.49497078,4306.4,4306.3,1.1]
[1757331619291,3.89470715,4306.4,4306.3,1.1]
[1757331619993,3.49497021,4306.4,4306.3,1.1]
[1757331621389,4.18218742,4306.4,4306.3,1.1]
[1757331622193,4.1823525,4306.4,4306.3,1.1]
[1757331622996,4.0544525,4306.4,4306.3,1.1]
[1757331624086,4.1823525,4306.4,4306.3,1.1]
[1757331624296,4.1823525,4306.4,4306.3,0.7969]
[1757331624494,4.2622525,4306.4,4306.3,0.4948]
[1757331625096,4.1823525,4306.4,4306.3,0.7969]
[1757331626191,4.2622525,4306.4,4306.3,0.7969]
[1757331626391,4.2622525,4306.4,4306.3,0.4948]
[1757331627794,4.26248251,4306.4,4306.3,0.4948]
[1757331628289,4.18258251,4306.4,4306.3,0.4948]
[1757331628892,4.18258251,4306.4,4306.3,0.7969]
[1757331629897,4.18303906,4306.4,4306.3,0.7969]
[1757331630100,4.18303906,4306.4,4306.3,1.1]
[1757331632198,4.18314781,4306.4,4306.3,1.1]
[1757331633203,4.02353884,4306.4,4306.3,1.1]
[1757331633502,4.18325822,4306.4,4306.3,1.1]
[1757331634204,3.92745822,4306.4,4306.3,1.1]
[1757331634694,4.02895822,4306.4,4306.3,1.1]
[1757331635602,3.92745822,4306.4,4306.3,1.1]
[1757331635796,3.92757524,4306.4,4306.3,1.1]
[1757331637396,4.02717524,4306.4,4306.3,1.1]
[1757331641603,4.12677524,4306.4,4306.3,1.1]
[1757331643697,3.92757524,4306.4,4306.3,1.1]
[1757331643904,4.02717524,4306.4,4306.3,1.1]
[1757331645008,3.92757524,4306.4,4306.3,1.1]
[1757331648711,4.02717524,4306.4,4306.3,1.1]
[1757331651615,4.12677524,4306.4,4306.3,1.1]
[1757331651910,4.12677524,4306.4,4305.7,2.7265]
[1757331651911,0.2615,4305.8,4305.7,2.7265]
[1757331652117,3.6291364,4305.8,4305.7,2.7265]
[1757331652414,8.47715028,4305.8,4303.6,3.2078]
[1757331652717,8.47715028,4305.8,4303.8,0.4964]
[1757331652718,3.2078,4304.6,4303.8,0.4964]
[1757331652910,0.72180028,4304.5,4304.1,0.4964]
[1757331654015,0.72333502,4304.5,4304.1,0.4964]
[1757331654817,0.72333502,4304.5,4304.4,15.67962383]
[1757331655315,3.2078,4304.6,4304.4,15.67962383]
[1757331655711,3.2078,4304.6,4304.4,15.18322383]
[1757331655917,3.2078,4304.6,4304.5,0.4964]
[1757331656120,3.92902347,4304.6,4304.5,1.0049]
[1757331656318,3.2078,4304.6,4304.5,1.3321]
[1757331656811,3.2078,4305.1,4304.5,1.3321]
[1757331657013,0.72086208,4305.0,4304.6,0.3202]
[1757331657218,0.72086208,4304.9,4304.7,0.3202]
[1757331657417,0.72086208,4304.9,4304.5,0.1883]
[1757331657418,3.2078,4305.1,4305.0,0.6847]
[1757331657610,3.9284111,4305.1,4305.0,0.6847]
[1757331658513,3.36879927,4305.1,4305.0,0.6847]
[1757331658717,3.2078,4305.1,4305.0,0.6847]
[1757331660112,3.2078,4305.1,4305.0,1.0049]
[1757331660311,3.2078,4305.1,4305.0,1.3321]
[1757331660618,3.2078,4305.6,4305.5,1.0049]
[1757331661416,3.2078,4305.6,4305.5,1.3321]
[1757331667017,3.2184,4305.6,4305.5,1.3321]
[1757331668824,0.1161,4305.8,4305.5,0.8357]
[1757331669028,0.1267,4305.8,4305.7,0.6254]
[1757331669223,0.1267,4305.8,4305.7,1.0836]
[1757331669921,0.1373,4305.8,4305.7,1.0836]
[1757331670927,0.1373,4305.8,4305.7,0.4582]
[1757331671222,0.30494716,4305.8,4305.7,0.4582]
[1757331671427,0.29834716,4305.8,4305.7,0.4582]
[1757331671932,0.29834716,4305.8,4305.7,0.766]
[1757331672225,0.29835881,4305.8,4305.7,1.0836]
[1757331673428,0.27715881,4305.8,4305.7,1.0836]
[1757331673630,0.1161,4305.8,4305.7,1.0836]
[1757331676934,3.2078,4306.7,4306.6,1.0836]
[1757331677131,4.31529486,4306.7,4306.6,1.0836]
[1757331677426,4.31531101,4306.7,4306.6,1.0836]
[1757331677624,3.92271101,4306.7,4306.6,1.0836]
[1757331678331,3.2078,4306.7,4306.6,1.0836]
[1757331683039,3.4041,4306.7,4306.6,1.0836]
[1757331683241,3.6004,4306.7,4306.6,1.0836]
[1757331683733,3.6004,4306.7,4306.6,0.766]
[1757331684137,3.6004,4306.7,4306.6,1.0836]
[1757331684338,3.4041,4306.7,4306.6,1.0836]
[1757331685839,3.2078,4306.7,4306.6,1.0836]
[1757331686235,3.23423663,4306.7,4306.6,1.0836]
[1757331686436,3.43053663,4306.7,4306.6,1.0836]
[1757331688740,0.1963,4307.6,4307.5,0.1927]
[1757331689038,0.1963,4307.6,4307.0,0.1927]
[1757331689039,0.3926,4307.1,4307.0,0.1927]
[1757331689241,0.3926,4307.1,4306.3,3.2078]
[1757331689438,0.3926,4306.2,4306.1,0.4582]
[1757331689841,0.3926,4306.2,4306.1,0.766]
[1757331690744,0.1963,4306.2,4306.1,1.0836]
[1757331691045,0.1963,4306.3,4306.2,0.3078]
[1757331691238,0.3926,4306.3,4306.2,0.766]
[1757331692143,0.3926,4306.3,4306.2,1.0836]
[1757331694239,3.2078,4306.5,4306.3,0.4582]
[1757331694447,3.5522,4306.5,4306.4,1.0836]
[1757331695547,3.70754121,4306.5,4306.4,1.0836]
[1757331697545,3.5522,4306.5,4306.4,1.0836]
[1757331697846,3.70757175,4306.5,4306.4,1.0836]
[1757331699947,3.5522,4306.5,4306.4,1.0836]
[1757331701845,3.5522,4306.5,4306.4,0.4582]
[1757331702048,0.4473,4306.1,4306.0,0.6743]
[1757331702248,0.4473,4306.1,4306.0,0.4816]
[1757331702650,0.4473,4306.1,4306.0,0.6804]
[1757331703138,0.3408,4306.1,4306.0,1.0062]
[1757331704348,0.3408,4306.1,4306.0,1.3065]
[1757331710154,0.49634633,4306.1,4306.0,1.3065]
[1757331713949,1.05868448,4306.1,4306.0,1.3065]
[1757331718464,0.88828448,4306.1,4306.0,1.3065]
[1757331719964,0.32594633,4306.1,4306.0,1.3065]
[1757331720365,0.15554633,4306.1,4306.0,1.3065]
[1757331720967,4.43428057,4307.5,4306.4,1.1077]
[1757331721161,1.04630663,4307.4,4307.3,1.1077]
[1757331721362,0.71890663,4307.4,4307.3,1.1077]
[1757331722466,0.15578261,4307.4,4307.3,1.1077]
[1757331723267,0.4772,4307.9,4307.3,0.6261]
[1757331723472,0.3274,4307.5,4307.4,1.1077]
[1757331723775,5.20643788,4307.5,4307.1,0.4816]
[1757331724075,1.1195,4307.2,4307.1,0.4816]
[1757331724464,0.6423,4307.2,4307.1,1.1077]
[1757331724664,1.1195,4307.2,4307.1,1.1077]
[1757331725673,0.6423,4307.2,4307.1,1.1077]
[1757331726173,1.1233,4307.2,4307.1,1.1077]
[1757331726367,1.1233,4307.2,4306.5,0.1988]
[1757331726368,1.1233,4307.2,4306.6,0.4621]
[1757331726569,3.5321,4306.9,4306.8,1.0988]
[1757331726764,3.2078,4306.9,4306.8,1.0988]
[1757331726969,3.6888,4307.5,4307.0,0.1914]
[1757331727167,1.04174057,4307.4,4307.3,1.0988]
[1757331727370,1.35364057,4307.4,4307.3,1.0988]
[1757331728070,0.15546081,4307.4,4307.3,1.0988]
[1757331728464,3.2078,4307.5,4307.3,1.0988]
[1757331728669,3.2078,4307.5,4307.4,0.4621]
[1757331728874,3.2078,4307.5,4307.4,1.0988]
[1757331729978,3.92515792,4307.5,4307.4,1.0988]
[1757331730178,5.04235792,4307.5,4307.4,1.0988]
[1757331731869,4.88691275,4307.5,4307.4,1.0988]
[1757331732074,5.04230612,4307.5,4307.4,1.0988]
[1757331732274,4.48039337,4307.5,4307.4,1.0988]
[1757331734368,3.99939337,4307.5,4307.4,1.0988]
[1757331735182,3.5321,4307.5,4307.4,1.0988]
[1757331735674,3.2078,4308.1,4307.5,0.6535]
[1757331735875,3.5321,4308.1,4308.0,1.2902]
[1757331736076,4.24866542,4308.1,4308.0,1.2902]
[1757331736679,4.56056542,4308.1,4308.0,1.2902]
[1757331737280,3.5321,4308.1,4308.0,1.2902]
[1757331737482,3.2078,4308.1,4308.0,1.2902]
[1757331737780,0.481,4308.6,4308.5,0.3174]
[1757331737781,1.1172,4308.6,4308.5,0.3174]
[1757331737978,1.83364797,4308.6,4308.5,0.7795]
[1757331738378,1.83364797,4308.6,4308.5,0.9709]
[1757331738582,1.83364797,4308.6,4308.5,1.2902]
[1757331739377,1.83364797,4308.6,4308.5,1.0988]
[1757331740278,1.83364797,4308.6,4308.0,0.1914]
[1757331740485,1.1172,4308.1,4308.0,0.4621]
[1757331740783,1.1172,4308.1,4308.0,0.7795]
[1757331741585,0.6362,4308.1,4308.0,1.2902]
[1757331742084,3.2078,4308.2,4308.1,1.0988]
[1757331743780,3.5321,4308.2,4308.1,1.0988]
[1757331744491,3.844,4308.2,4308.1,1.0988]
[1757331745689,4.325,4308.2,4308.1,1.0988]
[1757331746589,4.325,4308.2,4307.6,0.4621]
[1757331746789,0.481,4308.1,4307.6,0.4621]
[1757331746991,0.481,4308.0,4307.6,0.6367]
[1757331747186,0.8053,4308.0,4307.9,0.6367]
[1757331747386,0.8053,4308.0,4307.9,1.0988]
[1757331748083,1.1172,4308.0,4307.9,1.0988]
[1757331749290,0.6362,4308.0,4307.9,1.0988]
[1757331749986,1.1172,4308.0,4307.5,0.1914]
[1757331750193,1.2784,4308.0,4307.1,0.4621]
[1757331750689,1.1172,4308.0,4307.9,0.3174]
[1757331750889,0.79132783,4308.0,4307.9,1.0988]
[1757331751393,1.1172,4308.0,4307.9,1.0988]
[1757331753294,0.3243,4308.0,4307.9,1.0988]
[1757331753492,0.3243,4308.1,4308.0,0.1914]
[1757331753695,0.4794451,4308.1,4308.0,0.8281]
[1757331753892,0.7913451,4308.1,4308.0,0.8281]
[1757331754098,1.2723451,4308.1,4308.0,1.2902]
[1757331754486,0.7913451,4308.1,4308.0,1.2902]
[1757331756794,1.2638451,4308.1,4308.0,1.2902]
[1757331757093,1.82643687,4308.1,4308.0,0.7795]
[1757331757697,1.82643687,4308.1,4307.5,0.1914]
[1757331758002,1.0785,4307.7,4307.6,0.7569]
[1757331758694,4.4415372,4307.7,4307.1,0.4578]
[1757331758898,0.606,4307.2,4307.1,0.2991]
[1757331759095,1.0785,4307.2,4307.1,0.7569]
[1757331760202,1.23374933,4307.2,4307.1,1.0609]
[1757331762007,0.76124933,4307.2,4307.1,1.0609]
[1757331762307,0.15524933,4307.2,4307.1,1.0609]
[1757331764605,0.45994933,4307.2,4307.1,1.0609]
[1757331765106,0.15524933,4307.2,4307.1,1.0609]
[1757331765304,1.0785,4308.0,4307.9,0.6031]
[1757331765505,1.79270611,4308.0,4307.9,0.7569]
[1757331765698,1.95390611,4308.0,4307.6,0.4578]
[1757331765894,1.0785,4307.7,4307.6,0.4578]
[1757331766101,1.79270611,4307.7,4307.6,0.4578]
[1757331767897,0.3047,4307.2,4307.1,1.0609]
[1757331768802,3.6803,4307.6,4307.1,0.6031]
[1757331768999,1.01858134,4307.5,4307.4,1.0609]
[1757331770613,1.31988134,4307.5,4307.4,1.0609]
[1757331770906,1.79238134,4307.5,4307.4,1.0609]
[1757331771205,1.79238134,4307.5,4307.4,0.7569]
[1757331771505,1.79238134,4307.5,4307.4,0.4578]
[1757331772001,1.79238134,4307.5,4307.0,2.7698]
[1757331772206,0.606,4307.2,4307.1,1.0609]
[1757331776206,0.3047,4307.2,4307.1,1.0609]
[1757331776705,3.2078,4307.6,4307.5,1.2476]
[1757331776896,0.56271753,4307.6,4307.5,1.2476]
[1757331777103,1.0785,4308.3,4308.2,0.2991]
[1757331777296,1.0785,4308.3,4308.2,0.7569]
[1757331777297,1.79231853,4308.3,4308.2,0.7569]
[1757331777598,1.79231853,4308.3,4308.2,1.0609]
[1757331777807,1.31981853,4308.3,4308.2,1.0609]
[1757331780005,1.79231853,4308.3,4308.2,1.0609]
[1757331780407,1.79231853,4308.3,4308.2,0.4578]
[1757331780810,1.79231853,4308.3,4308.2,0.7569]
[1757331785117,1.79231853,4308.3,4308.2,1.0609]
[1757331785315,1.31981853,4308.3,4308.2,1.0609]
[1757331786114,1.01851853,4308.3,4308.2,1.0609]
[1757331787406,1.01850871,4308.3,4308.2,1.0609]
[1757331787605,0.71380871,4308.3,4308.2,1.0609]
[1757331787807,3.2078,4308.4,4308.2,0.6031]
[1757331788008,3.2078,4308.4,4308.0,0.1867]
[1757331788009,3.2078,4308.4,4308.3,1.0674]
[1757331788811,0.17,4308.9,4308.5,0.1792]
[1757331789114,0.17,4308.9,4308.8,1.0674]
[1757331789314,0.32097681,4308.9,4308.8,1.0674]
[1757331789510,0.17,4308.9,4308.8,1.0674]
[1757331794112,1.2217,4308.9,4308.8,1.0674]
[1757331794308,1.2217,4308.9,4308.8,0.446]
[1757331794713,5.2217,4308.9,4307.3,3.2078]
[1757331795024,4.2595,4307.8,4306.6,3.2078]
[1757331795317,1.0517,4307.6,4307.5,0.3173]
[1757331796111,0.6032,4307.6,4307.5,0.8006]
[1757331796809,0.116,4307.7,4307.5,0.8006]
[1757331797012,0.116,4307.7,4307.6,1.0674]
[1757331797317,1.1677,4307.7,4307.6,1.0674]
[1757331797820,0.7192,4307.7,4307.6,1.0674]
[1757331798417,4.3755,4307.7,4307.6,0.3173]
[1757331798621,4.3755,4307.7,4307.4,0.446]
[1757331798921,1.2446,4307.5,4307.4,0.446]
[1757331799309,1.2446,4307.5,4307.4,0.7633]
[1757331801019,1.0517,4307.5,4307.4,0.7633]
[1757331801214,1.0517,4307.5,4307.4,1.0674]
[1757331808434,3.5151,4307.7,4307.6,1.0674]
[1757331808727,3.9636,4307.7,4307.6,1.0674]
[1757331809331,4.0796,4307.7,4307.6,1.0674]
[1757331809928,3.6311,4307.7,4307.6,1.0674]
[1757331810126,0.116,4307.7,4307.6,1.0674]
[1757331811718,0.116,4307.7,4307.6,5.0674]
[1757331814933,3.6563,4308.8,4307.6,5.0674]
[1757331815125,3.811,4308.8,4308.7,1.0674]
[1757331815331,0.3073,4308.8,4308.7,1.0674]
[1757331815728,0.7719,4308.8,4308.7,1.0674]
[1757331816829,1.0842,4308.8,4308.7,1.0674]
[1757331820129,0.17,4308.9,4308.8,0.4644]
[1757331820329,0.46,4308.9,4308.8,1.0568]
[1757331820731,1.2369,4308.9,4308.4,0.4644]
[1757331820932,0.6023,4308.3,4308.2,0.7514]
[1757331821131,0.4646,4308.2,4308.1,1.672]
[1757331821332,1.0669,4308.2,4308.1,1.672]
[1757331821632,1.0669,4308.2,4308.1,1.959]
[1757331822131,1.0669,4308.2,4308.1,2.4234]
[1757331822337,1.0669,4308.2,4308.1,1.672]
[1757331822831,1.0669,4308.2,4308.1,2.7288]
[1757331825030,1.0669,4308.2,4308.1,1.959]
[1757331825234,1.0669,4308.2,4308.1,2.4234]
[1757331826035,1.0669,4308.2,4308.1,1.672]
[1757331826236,5.0669,4308.2,4308.1,1.672]
[1757331826538,5.77835515,4308.2,4308.1,1.672]
[1757331828840,0.1749,4308.0,4307.7,2.996]
[1757331829035,4.2747,4307.8,4307.7,2.996]
[1757331831741,3.8101,4307.8,4307.5,3.2044]
[1757331831943,1.0669,4307.7,4307.6,0.287]
[1757331835347,0.4646,4307.6,4307.5,2.74]
[1757331835647,1.0669,4307.6,4307.5,2.74]
[1757331837748,1.0669,4307.6,4307.3,0.4644]
[1757331837946,3.2078,4307.8,4307.3,0.7514]
[1757331837947,1.0669,4307.4,4307.3,0.7514]
[1757331838643,1.0669,4307.4,4307.3,1.0568]
[1757331847651,3.2078,4307.8,4307.5,0.1863]
[1757331847852,3.5197,4308.4,4308.3,1.0309]
[1757331848448,3.2078,4308.4,4308.3,1.0309]
[1757331848648,4.2602,4308.4,4308.3,0.7437]
[1757331848854,4.97211713,4308.4,4307.6,0.4386]
[1757331849056,1.0524,4308.3,4308.2,0.7437]
[1757331850154,1.76453641,4308.3,4308.2,1.0309]
[1757331855562,4.97233641,4308.3,4308.2,1.0309]
[1757331859665,4.97233641,4308.3,4308.2,0.7437]
[1757331859959,0.599,4307.4,4307.3,0.7437]
[1757331860166,1.0524,4307.4,4307.3,0.7437]
[1757331860560,1.0524,4307.4,4307.3,1.0309]
[1757331861767,1.0524,4307.4,4307.3,2.4709]
[1757331871988,0.3119,4307.4,4307.3,2.4709]
[1757331872186,3.2078,4307.7,4307.6,0.5923]
[1757331872482,3.2078,4307.7,4307.5,0.1863]
[1757331872483,0.4534,4308.2,4308.1,1.0309]
[1757331872681,0.15069048,4308.2,4308.1,1.0309]
[1757331872980,0.4534,4308.3,4308.2,0.4386]
[1757331873185,0.7653,4308.3,4308.2,1.0309]
[1757331873580,1.0524,4308.3,4308.2,1.0309]
[1757331876789,3.2078,4308.5,4308.2,1.0309]
[1757331876989,1.43136924,4308.4,4308.3,0.9854]
[1757331877376,1.70846924,4308.4,4308.3,0.9854]
[1757331877580,1.55776702,4308.4,4308.3,0.9854]
[1757331878288,0.9954,4308.4,4308.3,0.9854]
[1757331879387,1.5577621,4308.4,4308.3,0.9854]
[1757331880184,1.7084634,4308.4,4308.3,0.9854]
[1757331880385,1.7084634,4308.4,4308.3,0.7031]
[1757331882190,1.7084634,4308.4,4307.5,3.3941]
[1757331882386,0.7183,4308.2,4307.7,0.4206]
[1757331882692,0.9954,4308.2,4308.1,0.9854]
[1757331882994,0.7183,4308.3,4308.2,0.9854]
[1757331883185,1.43131597,4308.3,4308.2,0.9854]
[1757331883792,1.70841597,4308.3,4308.2,0.9854]
[1757331886495,1.00611597,4308.3,4308.2,0.9854]
[1757331886793,0.71301597,4308.3,4308.2,0.9854]
[1757331887189,1.43131597,4308.3,4308.2,0.9854]
[1757331887892,1.70841597,4308.3,4308.2,0.9854]
[1757331888488,1.14609093,4308.3,4308.2,0.9854]
[1757331888689,0.7183,4308.3,4308.2,0.9854]
[1757331888888,0.2931,4308.3,4308.2,0.9854]
[1757331889297,0.7183,4308.3,4308.2,0.9854]
[1757331890092,1.43205701,4308.3,4308.2,0.9854]
[1757331890695,1.70915701,4308.3,4308.2,0.9854]
[1757331892897,0.71375701,4308.3,4308.2,1.21750999]
[1757331893098,0.5952,4308.9,4308.3,0.4206]
[1757331893291,1.13896357,4308.8,4308.1,0.4206]
[1757331893596,0.7183,4308.1,4308.0,1.1502]
[1757331893792,3.375,4308.5,4308.0,0.7296]
[1757331893793,0.4252,4308.4,4308.0,0.7296]
[1757331893994,3.2078,4308.5,4308.4,0.4206]
[1757331894198,4.91694804,4308.5,4308.4,0.9854]
[1757331894399,4.91694453,4308.5,4308.4,0.9854]
[1757331896589,4.21464453,4308.5,4308.4,0.9854]
[1757331896791,3.92154453,4308.5,4308.4,0.9854]
[1757331896999,4.63984453,4308.5,4308.4,0.9854]
[1757331897300,4.91694453,4308.5,4308.4,0.9854]
[1757331897903,3.77005888,4308.5,4308.4,0.9854]
[1757331898202,3.9215589,4308.5,4308.4,0.9854]
[1757331898405,0.56225888,4308.5,4308.4,1.2175]
[1757331898702,0.8883,4308.9,4308.8,0.9854]
[1757331899006,1.6021505,4308.9,4308.8,0.9854]
[1757331899202,1.1769505,4308.9,4308.8,0.9854]
[1757331899598,1.6021505,4308.9,4308.8,0.9854]
[1757331900207,1.1654,4308.9,4308.8,0.9854]
[1757331901005,1.72789059,4308.9,4308.8,0.9854]
[1757331901300,1.87947069,4308.9,4308.8,0.9854]
[1757331902306,1.87948532,4308.9,4308.8,0.9854]
[1757331902500,1.1654,4308.9,4308.8,0.9854]
[1757331902999,0.17,4308.9,4308.8,0.9854]
[1757331903195,0.8883,4308.9,4308.8,0.9854]
[1757331904206,0.17,4308.9,4308.8,0.9854]
[1757331904408,0.17,4308.9,4308.8,5.21748]
[1757331904706,0.17,4308.9,4308.8,4.9854]
[1757331905304,1.1724,4310.0,4309.9,0.2825]
[1757331905499,1.88587801,4310.0,4309.9,0.7141]
[1757331906700,1.46067801,4310.0,4309.4,0.4316]
[1757331906915,0.5917,4309.5,4309.4,0.7208]
[1757331907210,0.7613,4309.5,4309.3,1.5328]
[1757331907408,1.0061,4309.4,4309.3,1.822]
[1757331907612,1.0061,4309.4,4309.3,2.5302]
[1757331908003,1.0061,4309.4,4309.3,2.2536]
[1757331908209,1.0061,4309.4,4309.3,2.5302]
[1757331910212,0.2975,4309.4,4309.3,2.5302]
[1757331910611,0.7119,4309.4,4309.3,2.5302]
[1757331912811,3.2078,4310.1,4310.0,0.5658]
[1757331912812,4.2139,4310.1,4310.0,0.5658]
[1757331913007,0.5917,4309.6,4309.5,0.7208]
[1757331913306,1.0061,4309.6,4309.5,0.9974]
[1757331913513,3.2078,4310.1,4309.5,0.9974]
[1757331913514,0.7119,4309.9,4309.8,0.5658]
[1757331913810,1.0061,4309.9,4309.8,0.9974]
[1757331915107,3.2078,4310.1,4309.8,0.5658]
[1757331915307,3.6222,4310.1,4310.0,0.1759]
[1757331915508,3.9197,4310.1,4310.0,1.1733]
[1757331916014,4.2139,4310.1,4310.0,0.9974]
[1757331916207,3.2078,4310.1,4310.0,1.1733]
[1757331916406,3.7995,4310.1,4310.0,1.1733]
[1757331916611,4.2139,4310.1,4310.0,0.9974]
[1757331916818,0.1696,4310.0,4309.6,0.7208]
[1757331917115,1.0061,4309.7,4309.6,0.9974]
[1757331917811,0.2975,4309.7,4309.6,0.9974]
[1757331918014,0.4144,4310.4,4309.7,0.4316]
[1757331918212,3.2078,4310.6,4309.7,0.4316]
[1757331918414,1.12700656,4310.4,4309.7,0.4316]
[1757331918611,0.2975,4309.8,4309.7,0.9974]
[1757331919117,0.7119,4309.8,4309.7,0.9974]
[1757331919618,0.7119,4309.8,4309.6,1.3464]
[1757331919619,0.2975,4309.9,4309.8,0.9974]
[1757331919819,0.7119,4309.9,4309.8,0.9974]
[1757331921013,0.2975,4309.9,4309.8,1.41507]
[1757331921213,0.4144,4310.2,4309.8,1.41507]
[1757331921416,1.0061,4310.4,4310.3,0.2892]
[1757331921621,1.0061,4310.4,4310.3,0.7208]
[1757331922012,1.0061,4310.4,4309.7,0.4316]
[1757331922013,0.5917,4310.4,4309.7,0.4316]
[1757331922319,1.0061,4310.3,4310.2,0.7208]
[1757331922820,0.5917,4310.9,4310.8,0.2892]
[1757331923025,1.0061,4310.9,4310.8,0.2892]
[1757331923217,1.2411,4310.9,4310.8,0.2892]
[1757331923614,1.2411,4310.9,4310.8,0.9974]
[1757331925209,1.2411,4310.9,4310.8,0.7208]
[1757331925414,0.5917,4310.5,4310.4,0.7208]
[1757331925614,1.0061,4310.5,4310.4,0.7208]
[1757331925814,0.4144,4310.4,4310.3,2.6696]
[1757331926014,1.0061,4310.4,4310.3,2.6696]
[1757331926220,1.0061,4310.4,4310.3,3.667]
[1757331926417,0.5325,4310.4,4310.3,3.2354]
[1757331926715,0.9469,4310.4,4310.3,3.2354]
[1757331926913,1.2411,4310.4,4310.3,3.2354]